{"text_format":"3","workbook":"xlsx","n_sheets":2,"sheets":["Račun za obračunavanje","Podjetje"],"not_rendered":{"images":1,"defined_names":27},"read":"whole","date_system":"1900"}

{"sheet":"Račun za obračunavanje","index":0,"n_rows":35,"n_cols":7,"rows_kept":35,"merged":[[1,3,2,4],[3,3,3,4],[4,3,4,4],[5,3,5,4],[23,1,23,3],[24,1,24,3],[25,1,25,3],[26,1,26,3]]}
[null,"RAČUN","0005"]
[null,{"$f":"TODAY()","v":"2022-04-01"},null,{"$f":"SkupniZnesekRačuna","v":79.65},null," ","Podjetje"]
[null,"ROK PLAČILA :",{"$f":"TODAY()+15","v":"2022-04-16"},null,null," "]
[null,"MAJA KOŠIR",null,"ADVENTURE WORKS"]
[null,"Fabrikam, Inc.",null,"23456 Maple Street"]
[null,"1234 First Street",null,"Orange Grove, CA 09876"]
[null,"Forest,  OR 12345"]
[null,"KOLIČINA","PODROBNOSTI","CENA ENOTE","SKUPNI ZNESEK VSEH ENOT"]
[null,2,"Pripomočki",14.95,{"$f":"IFERROR(PodrobnostiRačuna[[#This Row],[CENA ENOTE]]*PodrobnostiRačuna[[#This Row],[KOLIČINA]],\"\")","v":{"v":29.9,"d":"29.90"}}]
[null,5,"Tesnila",9.95,{"$f":"IFERROR(PodrobnostiRačuna[[#This Row],[CENA ENOTE]]*PodrobnostiRačuna[[#This Row],[KOLIČINA]],\"\")","v":49.75}]
[{"$nulls":4},{"$f":"IFERROR(PodrobnostiRačuna[[#This Row],[CENA ENOTE]]*PodrobnostiRačuna[[#This Row],[KOLIČINA]],\"\")","v":0}]
[{"$nulls":4},{"$f":"IFERROR(PodrobnostiRačuna[[#This Row],[CENA ENOTE]]*PodrobnostiRačuna[[#This Row],[KOLIČINA]],\"\")","v":0}]
[{"$nulls":4},{"$f":"IFERROR(PodrobnostiRačuna[[#This Row],[CENA ENOTE]]*PodrobnostiRačuna[[#This Row],[KOLIČINA]],\"\")","v":0}]
[{"$nulls":4},{"$f":"IFERROR(PodrobnostiRačuna[[#This Row],[CENA ENOTE]]*PodrobnostiRačuna[[#This Row],[KOLIČINA]],\"\")","v":0}]
[{"$nulls":4},{"$f":"IFERROR(PodrobnostiRačuna[[#This Row],[CENA ENOTE]]*PodrobnostiRačuna[[#This Row],[KOLIČINA]],\"\")","v":0}]
[{"$nulls":4},{"$f":"IFERROR(PodrobnostiRačuna[[#This Row],[CENA ENOTE]]*PodrobnostiRačuna[[#This Row],[KOLIČINA]],\"\")","v":0}]
[{"$nulls":4},{"$f":"IFERROR(PodrobnostiRačuna[[#This Row],[CENA ENOTE]]*PodrobnostiRačuna[[#This Row],[KOLIČINA]],\"\")","v":0}]
[{"$nulls":4},{"$f":"IFERROR(PodrobnostiRačuna[[#This Row],[CENA ENOTE]]*PodrobnostiRačuna[[#This Row],[KOLIČINA]],\"\")","v":0}]
[{"$nulls":4},{"$f":"IFERROR(PodrobnostiRačuna[[#This Row],[CENA ENOTE]]*PodrobnostiRačuna[[#This Row],[KOLIČINA]],\"\")","v":0}]
[{"$nulls":4},{"$f":"IFERROR(PodrobnostiRačuna[[#This Row],[CENA ENOTE]]*PodrobnostiRačuna[[#This Row],[KOLIČINA]],\"\")","v":0}]
[{"$nulls":4},{"$f":"IFERROR(PodrobnostiRačuna[[#This Row],[CENA ENOTE]]*PodrobnostiRačuna[[#This Row],[KOLIČINA]],\"\")","v":0}]
[{"$nulls":4},{"$f":"IFERROR(PodrobnostiRačuna[[#This Row],[CENA ENOTE]]*PodrobnostiRačuna[[#This Row],[KOLIČINA]],\"\")","v":0}]
[{"$nulls":4},{"$f":"IFERROR(PodrobnostiRačuna[[#This Row],[CENA ENOTE]]*PodrobnostiRačuna[[#This Row],[KOLIČINA]],\"\")","v":0}]
[null,"Popust"]
[null,"Skupaj neto",null,null,{"$f":"SUM(PodrobnostiRačuna[SKUPNI ZNESEK VSEH ENOT])-E24","v":{"v":79.65,"d":"79.65 €"}}]
[null,"Davek"]
[null,{"$f":"REPT(Podjetje_OkrajšavaValute,LEN(Podjetje_OkrajšavaValute)>0) & \" VSOTA\"","v":"EUR VSOTA"},null,null,{"$f":"IFERROR(E25+E26, \"\")","v":{"v":79.65,"d":"79.65 €"}}]
[null,"PODROBNOSTI O PLAČILU",null,null,"DRUGE INFORMACIJE"]
[null,"Ime upravičenca:",{"$f":" Podjetje_ImeBankeUpravičenca","v":"Adventure Works"},null,{"$f":"IFERROR(Podjetje_Ime,\"\")","v":"Rok Kavčič"}]
[null,"Ime banke:",{"$f":"Podjetje_ImeBanke","v":"Woodgrove Bank"},null,{"$f":"IFERROR(\"Telefon: \" & Podjetje_Telefon,\"\")","v":"Telefon: 425-555-0150"}]
[null,"Naslov banke:",{"$f":"Podjetje_NaslovBanke","v":"234 Main St. Orange Grove, CA 09876"},null,{"$f":"IFERROR(\"Faks: \" & Podjetje_Faks,\"\")","v":"Faks: 425-555-0151"}]
[null,"Številka računa:",{"$f":"Podjetje_BančniRačun","v":1234567},null,{"$f":"IFERROR(Podjetje_URL,\"\")","v":"Adventure-Works.com"}]
[null,"Koda banke (koda SWIFT)",{"$f":"Podjetje_KodaBanke","v":9876543210},null,{"$f":"IFERROR(Podjetje_Epošta,\"\")","v":"Accounting@Adventure-Works.com"}]
[null,"Referenca plačila:",{"$f":"PrikazŠtevilkeRačuna","v":"0005"},null,{"$f":"IFERROR(IF(LEN(Client_PO),\"Pogodba/št. naročilnice: \" & Client_PO,\"\"),\"\")","v":""}]
[null,{"$f":"UPPER(\"Plačilo morate izvesti z bančnim nakazilom ali čekom, ki se izplača \" &Podjetje_PrejemnikNakazila & \".\")","v":"PLAČILO MORATE IZVESTI Z BANČNIM NAKAZILOM ALI ČEKOM, KI SE IZPLAČA ADVENTURE WORKS."}]

{"sheet":"Podjetje","index":1,"n_rows":20,"n_cols":5,"rows_kept":20}
[null,"PODJETJE"]
[null,"PODROBNOSTI PODJETJA, KI IZDAJA RAČUN","VREDNOST",null,"Račun"]
[null,"Ime","Rok Kavčič"]
[null,"Ime podjetja","ADVENTURE WORKS"]
[null,"Vrstica naslova 1","23456 Maple Street"]
[null,"Vrstica naslova 2","Orange Grove, CA 09876"]
[null,"Vrstica naslova 3"]
[null,"Vrstica naslova 4"]
[null,"Vrstica naslova 5"]
[null,"Telefon","425-555-0150"]
[null,"Faks","425-555-0151"]
[null,"Spletno mesto","Adventure-Works.com"]
[null,"E-pošta","Accounting@Adventure-Works.com"]
[null,"Kratica valute","EUR"]
[null,"Ime upravičenca za bančno nakazilo","Adventure Works"]
[null,"Ime banke","Woodgrove Bank"]
[null,"Naslov banke","234 Main St. Orange Grove, CA 09876"]
[null,"Številka računa",1234567]
[null,"Koda banke (koda SWIFT)",9876543210]
[null,"Čeki naj bodo izstavljeni na","Adventure Works"]